Cogmind - Beta 15 @@@ ROGUE MODE // 2025.06.16 @ 22:39:30 Player: Duduxx Result: Destroyed by GY-OP3(R) with Subdweller Laser Performance ------------- Evolutions (0) 0 Regions Visited (3) 600 Robots Destroyed (19) 95 Value Destroyed (493) 493 Prototype IDs (0) 0 Alien Tech Used (0) 0 Bonus (0) 0 TOTAL SCORE: 1188 Bonus ------- None Cogmind --------- Core Integrity 0/250 Matter 275/300 Energy 192/200 System Corruption 4% Temperature Cool (60) Movement Rolling (130) Ox2 Location -10/Subcaves Parts ------- > --- POWER (1) -------- Subdweller Power Source > --- PROPULSION (2) --- Compact Wheel > --- UTILITY (2) ------ Disposable Heat Sink Large Storage Unit > --- WEAPON (2) ------- Subdweller Laser Subdweller Beam Cannon > --- INVENTORY (15) --- Spiked Treads Wheel Wheel Subdweller Monowheel Small Storage Unit Hacking Suite EM Pulse Gun EM Pulse Gun Beam Cannon Slug Cannon Datajack Mining Laser Peak State ------------ > --- POWER ------------ Subdweller Power Source > --- PROPULSION ------- Compact Wheel Subdweller Monowheel > --- UTILITY ---------- Disposable Heat Sink Large Storage Unit > --- WEAPON ----------- Subdweller Laser Subdweller Laser > --- INVENTORY -------- Spiked Treads Wheel Wheel Subdweller Monowheel Small Storage Unit Hacking Suite EM Pulse Gun EM Pulse Gun Beam Cannon Subdweller Beam Cannon Slug Cannon Datajack Mining Laser [Rating: 14] Favorites ----------- Power Light Ion Engine Engine Light Ion Engine Propulsion Light Treads Treads Light Treads Wheel Compact Wheel Utility Large Storage Unit Device Improved Terrain Scanner Storage Large Storage Unit Weapon Assault Rifle Energy Gun EM Pulse Gun Energy Cannon Subdweller Beam Cannon Ballistic Gun Assault Rifle Special Weapon Mining Laser Build | -11 -10 -10 -10 ------- Run | Yrd Mat Min Sub Slots Evolved . | . . . . Power . | . . . . Propulsion . | . . . . Utility . | . . . . Weapon . | . . . . Parts Attached 22 | 7 4 . 11 Power 5 | 1 2 . 2 Engine 5 | 1 2 . 2 Core . | . . . . Reactor . | . . . . Propulsion 5 | 2 1 . 2 Treads 3 | 2 1 . . Leg . | . . . . Wheel 2 | . . . 2 Hover . | . . . . Flight . | . . . . Utility 4 | 2 1 . 1 Device 2 | 1 . . 1 Storage 2 | 1 1 . . Processor . | . . . . Hackware . | . . . . Protection . | . . . . Artifact . | . . . . Weapon 8 | 2 . . 6 Energy Gun 4 | . . . 4 Energy Cannon 1 | . . . 1 Ballistic Gun 2 | 2 . . . Ballistic Cannon . | . . . . Launcher . | . . . . Special Weapon 1 | . . . 1 Impact Weapon . | . . . . Slashing Weapon . | . . . . Piercing Weapon . | . . . . Special Melee Weapon . | . . . . Unidentified Prototypes . | . . . . Corrupted Parts 2 | . . . 2 System Corruption 4 | . . . 4 Parts Lost 14 | . 2 . 12 Power 4 | . 2 . 2 Propulsion 4 | . . . 4 Utility 1 | . . . 1 Weapon 5 | . . . 5 Highest Loss Streak 9 | . 1 . 9 To Critical Strikes . | . . . . Average Backups 11 | 1 9 13 13 Power . | . . 1 . Propulsion 3 | 1 3 4 4 Utility 1 | . 1 2 2 Weapon 4 | . 2 5 6 Tool/Special . | . . . . Unused Backups 10 | . . . 10 Power . | . . . . Propulsion 4 | . . . 4 Utility 1 | . . . 1 Weapon 4 | . . . 4 Tool/Special 1 | . . . 1 Average Slot Usage (%) 98 | . 100 100 97 Engine 13 | . 14 14 13 Treads 17 | . 28 28 9 Wheel 9 | . . . 17 Device 13 | . 14 14 13 Storage 14 | . 14 14 14 Energy Gun 7 | . . . 13 Ballistic Gun 17 | . 28 28 9 Special Weapon 2 | . . . 4 Peak Build Rating 14 | 9 10 10 14 Average Rating 10 | 5 9 10 11 On Entrance 7 | . 9 10 10 Naked Turns . | . . . . Heaviest Build 32 | 15 30 28 32 Greatest Support 40 | 40 40 40 40 Greatest Overweight (x) 1 | . . . 1 Average Overweight (x) . | . . . . Largest Inventory Capacity 15 | 8 15 15 15 Average Capacity 14 | 7 14 15 15 Most Carried 15 | 4 13 13 15 Average Carried 11 | 2 9 13 13 Final Capacity 15 | 8 15 15 15 Final Carried 13 | 4 13 13 12 Class Distribution -------------------- 64% | Mutant 35% | Scavenger-Mutant Dominant Class ---------------- Mutant | -10/Materials Mutant | -10/Mines Scavenger-Mutant | -10/Subcaves Resources | -11 -10 -10 -10 ----------- Run | Yrd Mat Min Sub Matter Collected 663 | 264 273 . 126 Remotely . | . . . . Salvage Created 720 | 123 373 . 224 Parts 47 | 5 24 . 18 Haulers Intercepted . | . . . . Recyclers Shooed . | . . . . Parts Field Recycled . | . . . . Retrieved Matter . | . . . . Parts Self-Destructed . | . . . . Prevented . | . . . . Kills | -11 -10 -10 -10 ------- Run | Yrd Mat Min Sub Combat Hostiles Destroyed 14 | . 9 . 5 Guns 13 | . 9 . 4 Cannons 1 | . . . 1 Classes Destroyed 8 | 2 5 . 1 Worker 1 | . 1 . . Tunneler 1 | 1 . . . Recycler 1 | 1 . . . Operator 1 | . 1 . . Watcher 1 | . 1 . . Swarmer 3 | . 3 . . Grunt 6 | . 6 . . Subdweller 5 | . . . 5 Best Kill Streak 4 | 1 4 . 2 Combat Bots Only 4 | . 4 . 2 Max Kills in Single Turn 1 | 1 1 . 1 Gunslinging . | . . . . Exploded . | . . . . Melee . | . . . . Uniques/NPCs Destroyed . | . . . . Combat | -11 -10 -10 -10 -------- Run | Yrd Mat Min Sub Hostile Shots Fired 109 | . 47 . 62 Missed 34 | . 13 . 21 Hits 75 | . 34 . 41 Projectile 75 | . 34 . 41 Critical Strikes 3 | . . . 3 Damage Taken 1370 | . 442 . 928 Core 259 | . 84 . 175 Absorbed by Shields . | . . . . Core Remaining (%) 100 | 100 . . . Volleys Fired 66 | 6 33 . 27 Largest 2 | 2 2 . 2 Hottest 140 | 40 40 . 140 Shots Fired 128 | 12 66 . 50 Gun 123 | 12 66 . 45 Cannon 2 | . . . 2 Launcher . | . . . . Special 3 | . . . 3 Kinetic 105 | 12 66 . 27 Thermal 15 | . . . 15 Explosive . | . . . . Electromagnetic 8 | . . . 8 Robot Hit Streak 12 | 5 12 . 8 Robot Miss Streak 2 | 2 2 . 1 Penetration Max . | . . . . Secondary Targets 1 | . 1 . . Max Gunslinging Chain 1 | . 1 . . Shots Hit Robots 93 | 8 46 . 39 Core Hits 34 | 3 20 . 11 Critical Kills . | . . . . Critical Parts Destroyed . | . . . . Critical Strikes 1 | . . . 1 Destroy 1 | . . . 1 Melee Attacks . | . . . . Impact . | . . . . Slashing . | . . . . Piercing . | . . . . Sneak Attacks . | . . . . Combat Hostiles . | . . . . Follow-up Attacks . | . . . . Damage Inflicted 1277 | 98 639 . 540 Guns 1210 | 96 630 . 484 Cannons 56 | . . . 56 Explosions . | . . . . Melee . | . . . . Ramming 11 | 2 9 . . Kinetic 984 | 96 630 . 258 Thermal 198 | . . . 198 Explosive . | . . . . Electromagnetic 84 | . . . 84 Impact . | . . . . Slashing . | . . . . Piercing . | . . . . Highest Corruption 4 | . . . 4 Average Corruption 3 | . . . 3 Corruption Purged . | . . . . Corruption Blocked . | . . . . Overload Shots . | . . . . Overflow Damage . | . . . . Projectiles . | . . . . Explosions . | . . . . Melee . | . . . . Knockbacks . | . . . . Impact . | . . . . Kinetic . | . . . . Secondary . | . . . . Self-Inflicted Damage . | . . . . Shots . | . . . . Rammed 2 | 1 1 . . Targets Rammed 2 | 1 1 . . Kicked . | . . . . Crushed . | . . . . Highest Temperature 278 | . 5 . 278 Average Temperature 107 | . 2 . 124 Received Heat Transfer 1057 | . 186 . 871 Effects 3 | . . . 3 Interference 3 | . . . 3 Siege Activations . | . . . . Martial Activations . | . . . . Shielding Activations . | . . . . Robots Disrupted . | . . . . Combat Hostiles . | . . . . Robots Corrupted . | . . . . Combat Hostiles . | . . . . Parts Fried . | . . . . Impact Corruptions . | . . . . Robots Melted . | . . . . Combat Hostiles . | . . . . Parts Melted 1 | . . . 1 Heat Transferred 249 | . . . 249 Parts Sabotaged . | . . . . Parts Stolen . | . . . . Parts Stripped . | . . . . Power Chain Reactions . | . . . . Alert | -11 -10 -10 -10 ------- Run | Yrd Mat Min Sub Maximum Alert Level . | . . . . Low Security (%) 100 | 100 100 100 . Level 1 . | . . . . Level 2 . | . . . . Level 3 . | . . . . Level 4 . | . . . . Level 5 . | . . . . High Security . | . . . . Max Security . | . . . . Peak Influence 140 | 5 140 23 . Initial 23 | . . 23 . Average 49 | . 67 9 . Influence Increases 308 | 10 253 . 45 Destroy 0b10 Robot/C 180 | . 180 . . Destroy 0b10 Robot/NC 25 | 10 15 . . Destroy Leader 42 | . 42 . . Destroy Structure 1 | . 1 . . Lose Combat Pursuer 60 | . 15 . 45 Influence Decreases 308 | 10 192 61 45 Entered New Map 38 | . . 38 . Time Decay 221 | 10 172 23 16 Lost Part 49 | . 20 . 29 Squads Dispatched 2 | . 2 . . Investigation 1 | . 1 . . Extermination . | . . . . Reinforcement 1 | . 1 . . Assault . | . . . . Garrison . | . . . . Intercept . | . . . . Searches Triggered . | . . . . Construction Impeded . | . . . . Haulers Reinforced . | . . . . Active Scanning Responses . | . . . . Cargo Convoy Interrupts . | . . . . Stealth | -11 -10 -10 -10 --------- Run | Yrd Mat Min Sub Distress Signals . | . . . . Communications Jammed . | . . . . Distress Signals . | . . . . Times Spotted 24 | . 17 . 7 Peak Tracking Total 6 | . 6 . 3 Tactical Retreats 2 | . 1 . 1 Traps | -11 -10 -10 -10 ------- Run | Yrd Mat Min Sub Traps Triggered 2 | . 2 . . Indirectly . | . . . . Trap Hack Attempts . | . . . . Triggered . | . . . . Disarmed . | . . . . Reprogrammed . | . . . . Reused . | . . . . Traps Extracted . | . . . . Installed . | . . . . Triggered . | . . . . Machines | -11 -10 -10 -10 ---------- Run | Yrd Mat Min Sub Machines Disabled . | . . . . Max in Single Turn . | . . . . Machines Repaired . | . . . . Machines Dismantled . | . . . . Machines Sabotaged . | . . . . Overloaded Fab Kills . | . . . . Hacking | -11 -10 -10 -10 --------- Run | Yrd Mat Min Sub Machines Accessed 1 | . . . 1 Terminals . | . . . . Fabricators . | . . . . Repair Stations . | . . . . Recycling Units . | . . . . Scanalyzers . | . . . . Garrison Access . | . . . . Total Hacks 3 | . . . 3 Successful 3 | . . . 3 Failed . | . . . . Catastrophic . | . . . . Database Lockouts . | . . . . Manual . | . . . . Terminals . | . . . . Fabricators . | . . . . Repair Stations . | . . . . Recycling Units . | . . . . Scanalyzers . | . . . . Garrison Access . | . . . . Terminal Hacks 3 | . . . 3 Record 3 | . . . 3 Fabricator Hacks . | . . . . Repair Station Hacks . | . . . . Recycling Unit Hacks . | . . . . Scanalyzer . | . . . . Garrison Access Hacks . | . . . . Unauthorized Hacks . | . . . . Terminals . | . . . . Fabricators . | . . . . Repair Stations . | . . . . Recycling Units . | . . . . Scanalyzers . | . . . . Garrison Access . | . . . . Data Cores Recovered . | . . . . Used . | . . . . Hacking Detections . | . . . . Full Trace Events . | . . . . Feedback Events . | . . . . Feedback Blocked . | . . . . Robot Schematics Acquired . | . . . . Robots Built . | . . . . Authchips . | . . . . Time . | . . . . Total Robot Build Rating . | . . . . Part Schematics Acquired . | . . . . Parts Built . | . . . . Authchips . | . . . . Time . | . . . . Total Part Build Rating . | . . . . Parts Repaired . | . . . . Time . | . . . . Parts Recycled . | . . . . Recycled Matter . | . . . . Retrieved Matter . | . . . . Retrieved Components . | . . . . Parts Scanalyzed . | . . . . Part Schematics Acquired . | . . . . Parts Damaged . | . . . . Bothacking | -11 -10 -10 -10 ------------ Run | Yrd Mat Min Sub Used RIF Installer . | . . . . Robots Hacked . | . . . . Non-combat . | . . . . Combat . | . . . . Robot Hacks Applied . | . . . . Relay Couplers Released . | . . . . Fabnet Peak Effective % . | . . . . Robots Rewired . | . . . . Allies Hacked . | . . . . Hacks Repelled . | . . . . Allies | -11 -10 -10 -10 -------- Run | Yrd Mat Min Sub Total Allies . | . . . . Largest Group . | . . . . Highest-Rated Group . | . . . . Highest-Rated Ally . | . . . . Total Orders . | . . . . Ally Attacks . | . . . . Total Damage . | . . . . Kills . | . . . . Allies Corrupted . | . . . . Allies Melted . | . . . . Intel | -11 -10 -10 -10 ------- Run | Yrd Mat Min Sub Active Infowar (turns) 746 | 17 439 77 213 Terrain 746 | 17 439 77 213 Robot Analysis Total . | . . . . Derelict Logs Recovered 2 | . . 1 1 Drone Launches . | . . . . Drone Recoveries . | . . . . Exploration | -11 -10 -10 -10 ------------- Run | Yrd Mat Min Sub Turns Passed 1280 | 102 439 77 662 Spaces Moved 733 | 45 203 29 456 Core 3 | 3 . . . Treads 388 | 42 203 29 114 Legs . | . . . . Wheels 342 | . . . 342 Hover . | . . . . Flight . | . . . . Fastest Speed 50 | 50 160 160 105 Average Speed 134 | 152 160 160 119 Slowest Speed 240 | 160 160 160 240 Overloaded Moves . | . . . . Propulsion Burnouts . | . . . . Robots Hopped . | . . . . Potential Cave-ins . | . . . . Cave-ins Triggered . | . . . . Exploration Rate (%) 24 | 4 42 12 41 Regions Visited 3 Branch Regions 2 Pre-discovered Areas 2 | . . . 2 Known Exits Taken . | . . . . Unknown Exits Taken 3 | 1 1 1 . Scrap Searched . | . . . . Spaces Dug . | . . . . Terrain Destroyed . | . . . . Melee . | . . . . Projectile . | . . . . AOE . | . . . . Terrain Rammed . | . . . . Walls Destroyed . | . . . . Machines Disabled . | . . . . Actions | -11 -10 -10 -10 --------- Run | Yrd Mat Min Sub Total 888 | 62 250 60 516 Wait 45 | . 1 32 12 Move 731 | 45 202 28 456 Hop . | . . . . Pick Up 21 | 4 9 . 8 Fast Attach 9 | 7 . . 2 Attach 11 | . 2 . 9 Detach . | . . . . Swap 4 | . 2 . 2 Drop . | . . . . Fire 66 | 6 33 . 27 Melee . | . . . . Ram . | . . . . Kick . | . . . . Crush 1 | . 1 . . Escape Stasis . | . . . . Rewire . | . . . . Trap . | . . . . Miscellaneous . | . . . . Route ------- -11/Scrapyard -10/Materials (discovered 2 exits: [*Mat] / [*Min]) -10/Mines -10/Subcaves History --------- Turn | Location | Event 12 | -11/Scrapyard | Discovered new exit (range 15) 103 | -11/Scrapyard | Entered Materials 312 | -10/Materials | Build established: Mutant 408 | -10/Materials | Discovered new exit (range 14) 525 | -10/Materials | Discovered new exit (range 6) 542 | -10/Materials | Entered Mines 605 | -10/Mines | Discovered new exit (range 5) 619 | -10/Mines | Entered Subcaves 659 | -10/Subcaves | Learned location of Mines (-10) 806 | -10/Subcaves | A swath of the cavern ceiling suddenly collapsed 843 | -10/Subcaves | Core integrity fell below 50% 889 | -10/Subcaves | Lost 9 parts (2p3n1u3w) 972 | -10/Subcaves | Learned location of Zion (-7) 972 | -10/Subcaves | Met a Zionite searching for "candidates" 980 | -10/Subcaves | Shifting Twisted Machinery released Spk. Treads 985 | -10/Subcaves | Shifting Twisted Machinery released Piercing Trap 1071 | -10/Subcaves | Visited Clippyterm 1074 | -10/Subcaves | Learned Research machine intel 1129 | -10/Subcaves | Build established: Scavenger-Mutant 1195 | -10/Subcaves | Shifting Twisted Machinery released Sub. Optics 1212 | -10/Subcaves | Shifting Twisted Machinery released Shrapnel Trap 1269 | -10/Subcaves | Disturbed a concealed Subdweller 1275 | -10/Subcaves | Core integrity fell below 20% 1281 | -10/Subcaves | Destroyed by GY-OP3(R) with Subdweller Laser Last Messages --------------- useful relevant data. Data stored: Research machine intel. >>Record! "Early Bird" It looks like you're searching for a worm, right? Don't bother with early when it comes to the Lifeworm, it's never early, but by some measures it might be just in time... Sub. Optics falls loose from the Twisted Machinery. Shrapnel Trap falls loose from the Twisted Machinery. 01269_ 5R-2G7(R) angrily emerges from the Twisted Machinery. 01269_ EM Pulse Gun destroyed. 01271_ Integrated Corrupted Sub. Laser (+2). 01273_ Sub. Laser destroyed. 01275_ Integrated Corrupted Sub. Beam Cannon (+2). 01275_ Sub. Monowheel destroyed. 01279_ 5R-2G7(R) destroyed. Map ----- +----------------------------------------------------+ | ??????????????????????????????????????# ##### | | ??????????????????????????????????????# ##### | | ??????????????????????????????????????## #### | | ???????????????????????????????????????# # | | ??????????????????????????????????????## | | ???????????????????????????#####??????# # | | ?????????????????????????### ##???## ### | | ????????????????????????? #?## ####?## | | ???????????????????????? ## #?????## | | ??????????????????????????# ####???? | | ?????????????????????????????# ## #???? | | ?????????????????????????????# ## ##??? | | ?????????????????????????????# ## ##?? | | ????????????????????????????# ## ## ##? | | ????????????????????????????## ?## ## #? | | ?????????????????????????????##??# #? | | ?????????????????????????????????# #? | | ?????????????????????????????????## ## #? | | ??????????????????????????????????## ## ### ## | | ???????????????????????????????????## ### ## # | | ????????????????????????????????????# ### | | ???????????????????????????????????# #### " | | ???????????????????????#########??? ??## "" | | ??????????????????????## < #### ??###"" | | ??????????????????????#<< << < <### ????#" | | ??????????????????????# <@&= < ## ???## | | ??????????????????????# !%&&R<< ## ## ??## | | ??????????????????????#<<<<<##< # ## #?# | | ??????????????????????# <<<#### ## # ### | | ??????????????????????#< <